[Event "*** Titled Tuesday Blitz"]
[Site "Chess.com"]
[Date "2021.03.02"]
[Round "6"]
[White "AwareIdea"]
[Black "PetrolulSah"]
[Result "1-0"]
[WhiteElo "2443"]
[BlackElo "2187"]
[TimeControl "180+1"]
[EndTime "11:08:06 PST"]
[Termination "AwareIdea won on time"]

1. d4 {[%clk 0:03:00.9]} 1... Nf6 {[%clk 0:02:59.4]} 2. c4 {[%clk 0:03:00.5]}
2... g6 {[%clk 0:02:58.8]} 3. Nc3 {[%clk 0:03:00.2]} 3... d5 {[%clk 0:02:58.4]}
4. Bg5 {[%clk 0:02:58.9]} 4... Ne4 {[%clk 0:02:57.3]} 5. Bh4 {[%clk 0:02:59]}
5... Nxc3 {[%clk 0:02:53.5]} 6. bxc3 {[%clk 0:02:59.9]} 6... c5 {[%clk
0:02:53.7]} 7. e3 {[%clk 0:02:55.9]} 7... Bg7 {[%clk 0:02:53.7]} 8. cxd5 {[%clk
0:02:54.9]} 8... Qxd5 {[%clk 0:02:53]} 9. Nf3 {[%clk 0:02:53.6]} 9... cxd4
{[%clk 0:02:50.3]} 10. cxd4 {[%clk 0:02:51.6]} 10... Nc6 {[%clk 0:02:50.4]} 11.
Be2 {[%clk 0:02:48.3]} 11... e5 {[%clk 0:02:49.3]} 12. O-O {[%clk 0:02:36.2]}
12... exd4 {[%clk 0:02:47]} 13. Nxd4 {[%clk 0:02:22.7]} 13... Nxd4 {[%clk
0:02:45.2]} 14. exd4 {[%clk 0:02:20.8]} 14... Qxd4 {[%clk 0:02:45.3]} 15. Bb5+
{[%clk 0:02:17]} 15... Kf8 {[%clk 0:02:23.8]} 16. Qxd4 {[%clk 0:01:58.7]} 16...
Bxd4 {[%clk 0:02:21.4]} 17. Rad1 {[%clk 0:01:59.6]} 17... Bb2 {[%clk 0:01:43]}
18. Rd2 {[%clk 0:01:52]} 18... Bc3 {[%clk 0:01:41.9]} 19. Rd3 {[%clk 0:01:16.9]}
19... Ba5 {[%clk 0:01:41.1]} 20. Bf6 {[%clk 0:01:13.3]} 20... Rg8 {[%clk
0:01:41.2]} 21. Bd7 {[%clk 0:01:01.8]} 21... g5 {[%clk 0:01:05.5]} 22. Rc1
{[%clk 0:00:48.2]} 22... Bxd7 {[%clk 0:01:04]} 23. Rxd7 {[%clk 0:00:49.1]} 23...
Rg6 {[%clk 0:01:03.2]} 24. Be7+ {[%clk 0:00:28.6]} 24... Kg7 {[%clk 0:00:39.3]}
25. Rxb7 {[%clk 0:00:29.5]} 25... Bb6 {[%clk 0:00:37]} 26. g3 {[%clk 0:00:26.8]}
26... g4 {[%clk 0:00:32.8]} 27. Kg2 {[%clk 0:00:26.4]} 27... Re8 {[%clk
0:00:30.8]} 28. Rc2 {[%clk 0:00:25.6]} 28... Re6 {[%clk 0:00:30.3]} 29. Bc5
{[%clk 0:00:21.8]} 29... Bxc5 {[%clk 0:00:12.6]} 30. Rxc5 {[%clk 0:00:22.7]}
30... Ra6 {[%clk 0:00:12.7]} 31. Rf5 {[%clk 0:00:16.6]} 31... Rf6 {[%clk
0:00:12.6]} 32. Rxf6 {[%clk 0:00:15.5]} 32... Kxf6 {[%clk 0:00:13.5]} 33. Rxa7
{[%clk 0:00:16.4]} 33... Re1 {[%clk 0:00:13.5]} 34. Ra4 {[%clk 0:00:16.1]} 34...
h5 {[%clk 0:00:12.7]} 35. Ra5 {[%clk 0:00:16.1]} 35... Kg6 {[%clk 0:00:12.4]}
36. a4 {[%clk 0:00:16.2]} 36... Ra1 {[%clk 0:00:11.3]} 37. h3 {[%clk 0:00:15.9]}
37... f5 {[%clk 0:00:10.6]} 38. h4 {[%clk 0:00:14.8]} 38... Kf6 {[%clk
0:00:09.7]} 39. Ra6+ {[%clk 0:00:14.7]} 39... Kg7 {[%clk 0:00:08.8]} 40. a5
{[%clk 0:00:12.8]} 40... Ra2 {[%clk 0:00:04.2]} 41. Ra7+ {[%clk 0:00:12.9]}
41... Kg6 {[%clk 0:00:03.6]} 42. Ra6+ {[%clk 0:00:12.9]} 42... Kg7 {[%clk
0:00:03]} 43. Kf1 {[%clk 0:00:13.8]} 43... Rb2 {[%clk 0:00:02.3]} 44. Rb6 {[%clk
0:00:12]} 44... Ra2 {[%clk 0:00:02.7]} 45. a6 {[%clk 0:00:12.4]} 45... Kf7
{[%clk 0:00:02.8]} 46. Rb7+ {[%clk 0:00:12.1]} 46... Kg6 {[%clk 0:00:02.6]} 47.
a7 {[%clk 0:00:13]} 47... Kf6 {[%clk 0:00:01.6]} 48. Rh7 {[%clk 0:00:11.3]}
48... Kg6 {[%clk 0:00:01.1]} 49. Rb7 {[%clk 0:00:11.3]} 49... Kf6 {[%clk
0:00:01.3]} 50. Ke1 {[%clk 0:00:11.6]} 50... Ke6 {[%clk 0:00:01.6]} 51. Kd1
{[%clk 0:00:11.5]} 51... Kd6 {[%clk 0:00:01.4]} 52. Kc1 {[%clk 0:00:11.3]} 52...
Kc6 {[%clk 0:00:01.4]} 53. Rh7 {[%clk 0:00:10.6]} 1-0

[Event "*** Titled Tuesday Blitz"]
[Site "Chess.com"]
[Date "2021.03.02"]
[Round "6"]
[White "ChainsOfFantasia"]
[Black "DFeco"]
[Result "1-0"]
[WhiteElo "2448"]
[BlackElo "2256"]
[TimeControl "180+1"]
[EndTime "11:08:09 PST"]
[Termination "ChainsOfFantasia won by resignation"]

1. d4 {[%clk 0:03:00.9]} 1... d5 {[%clk 0:02:59.6]} 2. Nf3 {[%clk 0:03:00.5]}
2... Nf6 {[%clk 0:02:59.5]} 3. c4 {[%clk 0:03:00.8]} 3... c6 {[%clk 0:02:59.5]}
4. Nc3 {[%clk 0:03:01]} 4... a6 {[%clk 0:02:59.3]} 5. c5 {[%clk 0:02:57.2]} 5...
Bf5 {[%clk 0:02:51.1]} 6. Bf4 {[%clk 0:02:54.1]} 6... Nbd7 {[%clk 0:02:49.5]} 7.
e3 {[%clk 0:02:46.3]} 7... e6 {[%clk 0:02:44.7]} 8. Bd3 {[%clk 0:02:40.3]} 8...
Bxd3 {[%clk 0:02:32.6]} 9. Qxd3 {[%clk 0:02:41.2]} 9... Be7 {[%clk 0:02:30.3]}
10. O-O {[%clk 0:02:40.4]} 10... O-O {[%clk 0:02:28]} 11. b4 {[%clk 0:02:40.1]}
11... Re8 {[%clk 0:02:20.4]} 12. h3 {[%clk 0:02:28]} 12... Qc8 {[%clk
0:02:06.9]} 13. a4 {[%clk 0:02:20.9]} 13... Bd8 {[%clk 0:02:06]} 14. Rfb1 {[%clk
0:02:12]} 14... Bc7 {[%clk 0:02:04.3]} 15. Bxc7 {[%clk 0:02:02.9]} 15... Qxc7
{[%clk 0:02:02.5]} 16. b5 {[%clk 0:02:02.4]} 16... axb5 {[%clk 0:01:59.2]} 17.
axb5 {[%clk 0:02:01]} 17... e5 {[%clk 0:01:55.6]} 18. b6 {[%clk 0:01:53.4]}
18... Qb8 {[%clk 0:01:50.9]} 19. Nxe5 {[%clk 0:01:35.2]} 19... Nxe5 {[%clk
0:01:44.5]} 20. dxe5 {[%clk 0:01:35.7]} 20... Rxa1 {[%clk 0:01:30.3]} 21. Rxa1
{[%clk 0:01:34.7]} 21... Qxe5 {[%clk 0:01:29.7]} 22. Ra7 {[%clk 0:01:27.3]}
22... Rb8 {[%clk 0:01:26.5]} 23. Qd4 {[%clk 0:01:26]} 23... Qe7 {[%clk
0:01:18.7]} 24. Qf4 {[%clk 0:01:10.1]} 24... Rc8 {[%clk 0:01:01.1]} 25. Qd4
{[%clk 0:00:31]} 25... h6 {[%clk 0:00:52.7]} 26. g3 {[%clk 0:00:29.9]} 26... Rb8
{[%clk 0:00:49.4]} 27. Kg2 {[%clk 0:00:29.3]} 27... Nd7 {[%clk 0:00:46.3]} 28.
Na4 {[%clk 0:00:26.5]} 28... Kf8 {[%clk 0:00:34.9]} 29. Qf4 {[%clk 0:00:26.3]}
29... Qe5 {[%clk 0:00:32.4]} 30. Qxe5 {[%clk 0:00:23.8]} 30... Nxe5 {[%clk
0:00:32.4]} 31. f4 {[%clk 0:00:24.3]} 31... Nd7 {[%clk 0:00:26.4]} 32. Kf3
{[%clk 0:00:24.1]} 32... Ke7 {[%clk 0:00:26.2]} 33. e4 {[%clk 0:00:23.3]} 33...
dxe4+ {[%clk 0:00:25.2]} 34. Kxe4 {[%clk 0:00:24.2]} 34... Kf6 {[%clk
0:00:24.1]} 35. Kd4 {[%clk 0:00:21.5]} 35... Ke6 {[%clk 0:00:20.9]} 36. Nc3
{[%clk 0:00:20.9]} 36... f5 {[%clk 0:00:20.7]} 37. Kc4 {[%clk 0:00:18.5]} 37...
Nf6 {[%clk 0:00:19]} 38. Ne2 {[%clk 0:00:16.8]} 38... g6 {[%clk 0:00:17.6]} 39.
Nd4+ {[%clk 0:00:16.1]} 39... Kd7 {[%clk 0:00:15.8]} 40. Nf3 {[%clk 0:00:14.2]}
40... Ke6 {[%clk 0:00:14.4]} 41. Ne5 {[%clk 0:00:14]} 41... g5 {[%clk
0:00:14.3]} 42. Nd3 {[%clk 0:00:13.4]} 42... Ne4 {[%clk 0:00:13.4]} 43. fxg5
{[%clk 0:00:13.3]} 43... hxg5 {[%clk 0:00:13.2]} 44. h4 {[%clk 0:00:13.4]} 44...
Nxg3 {[%clk 0:00:12.3]} 45. hxg5 {[%clk 0:00:11.7]} 45... Ne4 {[%clk 0:00:12.3]}
46. g6 {[%clk 0:00:11.1]} 46... Kf6 {[%clk 0:00:12.5]} 47. Nf4 {[%clk
0:00:10.7]} 47... Ng5 {[%clk 0:00:11.5]} 48. Kd4 {[%clk 0:00:09.5]} 48... Ne6+
{[%clk 0:00:11.6]} 49. Nxe6 {[%clk 0:00:08.9]} 49... Kxe6 {[%clk 0:00:11.6]} 50.
g7 {[%clk 0:00:09.2]} 50... Kf7 {[%clk 0:00:11.7]} 51. Ke5 {[%clk 0:00:09.6]}
51... Kxg7 {[%clk 0:00:11.7]} 52. Kd6 {[%clk 0:00:10.1]} 52... Kf6 {[%clk
0:00:10.9]} 53. Kc7 {[%clk 0:00:10.5]} 53... Re8 {[%clk 0:00:11]} 54. Kxb7
{[%clk 0:00:10.6]} 54... f4 {[%clk 0:00:11.5]} 55. Kxc6 {[%clk 0:00:10.2]} 55...
f3 {[%clk 0:00:11.2]} 56. Ra1 {[%clk 0:00:10.6]} 56... Ke5 {[%clk 0:00:10.5]}
57. Re1+ {[%clk 0:00:10]} 57... Kd4 {[%clk 0:00:08.9]} 58. Rxe8 {[%clk
0:00:10.9]} 58... f2 {[%clk 0:00:08.7]} 59. Rf8 {[%clk 0:00:11.8]} 1-0

[Event "*** Titled Tuesday Blitz"]
[Site "Chess.com"]
[Date "2021.03.02"]
[Round "6"]
[White "redblizzard"]
[Black "BJthechessgod"]
[Result "1/2-1/2"]
[WhiteElo "2437"]
[BlackElo "2251"]
[TimeControl "180+1"]
[EndTime "11:08:11 PST"]
[Termination "Game drawn by repetition"]

1. d4 {[%clk 0:02:59.1]} 1... Nf6 {[%clk 0:02:40]} 2. Nc3 {[%clk 0:02:58.5]}
2... e6 {[%clk 0:02:05.9]} 3. e4 {[%clk 0:02:49.6]} 3... d5 {[%clk 0:02:05.5]}
4. Bg5 {[%clk 0:02:48.6]} 4... Bb4 {[%clk 0:02:00.1]} 5. e5 {[%clk 0:02:45.9]}
5... h6 {[%clk 0:02:00.3]} 6. Bd2 {[%clk 0:02:46]} 6... Bxc3 {[%clk 0:01:56.4]}
7. bxc3 {[%clk 0:02:46.9]} 7... Ne4 {[%clk 0:01:56.8]} 8. Qg4 {[%clk 0:02:46.6]}
8... Kf8 {[%clk 0:01:52.9]} 9. Bd3 {[%clk 0:02:46.5]} 9... Nxd2 {[%clk
0:01:52.5]} 10. Kxd2 {[%clk 0:02:47.4]} 10... Qg5+ {[%clk 0:01:51.6]} 11. Qxg5
{[%clk 0:02:42.8]} 11... hxg5 {[%clk 0:01:52.5]} 12. Nf3 {[%clk 0:02:08.6]}
12... g4 {[%clk 0:01:43.3]} 13. Ne1 {[%clk 0:02:08.6]} 13... f5 {[%clk
0:01:41.1]} 14. exf6 {[%clk 0:02:02.4]} 14... gxf6 {[%clk 0:01:41]} 15. Be2
{[%clk 0:02:03.3]} 15... e5 {[%clk 0:01:38.9]} 16. Nd3 {[%clk 0:01:58.9]} 16...
Nc6 {[%clk 0:01:39.1]} 17. f3 {[%clk 0:01:39.2]} 17... gxf3 {[%clk 0:01:36.9]}
18. gxf3 {[%clk 0:01:38.4]} 18... exd4 {[%clk 0:01:37.1]} 19. Nf4 {[%clk
0:01:35.9]} 19... dxc3+ {[%clk 0:01:34.5]} 20. Kxc3 {[%clk 0:01:36.8]} 20... d4+
{[%clk 0:01:35.1]} 21. Kd2 {[%clk 0:01:33.2]} 21... Ne5 {[%clk 0:01:32.3]} 22.
h4 {[%clk 0:01:29]} 22... Bf5 {[%clk 0:01:05.7]} 23. Rag1 {[%clk 0:01:19.9]}
23... c5 {[%clk 0:00:58.1]} 24. h5 {[%clk 0:01:07.4]} 24... Rh6 {[%clk
0:00:49.4]} 25. Rh4 {[%clk 0:01:05.5]} 25... c4 {[%clk 0:00:48]} 26. Nd5 {[%clk
0:01:03.1]} 26... c3+ {[%clk 0:00:45.1]} 27. Kc1 {[%clk 0:00:58.3]} 27... Rd8
{[%clk 0:00:39.2]} 28. Nf4 {[%clk 0:00:39.4]} 28... d3 {[%clk 0:00:37.1]} 29.
cxd3 {[%clk 0:00:38.8]} 29... Rd6 {[%clk 0:00:28.3]} 30. d4 {[%clk 0:00:36.7]}
30... Nc6 {[%clk 0:00:25.1]} 31. d5 {[%clk 0:00:32.7]} 31... Nb4 {[%clk
0:00:25.1]} 32. Bc4 {[%clk 0:00:30.7]} 32... b5 {[%clk 0:00:23.9]} 33. Bb3
{[%clk 0:00:19.5]} 33... Ra6 {[%clk 0:00:18.6]} 34. Ne6+ {[%clk 0:00:09.7]}
34... Bxe6 {[%clk 0:00:18.2]} 35. dxe6 {[%clk 0:00:10.6]} 35... Rd6 {[%clk
0:00:13.1]} 36. Rg8+ {[%clk 0:00:05.7]} 36... Ke7 {[%clk 0:00:13.4]} 37. Re4
{[%clk 0:00:04.4]} 37... Rh7 {[%clk 0:00:10.9]} 38. h6 {[%clk 0:00:03.5]} 38...
Nd3+ {[%clk 0:00:09.8]} 39. Kc2 {[%clk 0:00:02.3]} 39... Ne5 {[%clk 0:00:09.9]}
40. Kxc3 {[%clk 0:00:02.7]} 40... Rd3+ {[%clk 0:00:07.3]} 41. Kc2 {[%clk
0:00:01.9]} 41... Rxf3 {[%clk 0:00:07.4]} 42. Rg7+ {[%clk 0:00:02.8]} 42... Rxg7
{[%clk 0:00:06.9]} 43. hxg7 {[%clk 0:00:03.7]} 43... Rg3 {[%clk 0:00:07.1]} 44.
Rd4 {[%clk 0:00:02.4]} 44... Rxg7 {[%clk 0:00:07.2]} 45. Rh4 {[%clk 0:00:02.9]}
45... f5 {[%clk 0:00:05.7]} 46. Kc3 {[%clk 0:00:03.2]} 46... Kf6 {[%clk
0:00:05]} 47. Rh5 {[%clk 0:00:04.1]} 47... Rc7+ {[%clk 0:00:05.2]} 48. Kb4
{[%clk 0:00:04]} 48... a6 {[%clk 0:00:05.6]} 49. Ka5 {[%clk 0:00:04.3]} 49...
Rc6 {[%clk 0:00:05.6]} 50. Rh6+ {[%clk 0:00:04.4]} 50... Ke7 {[%clk 0:00:05.7]}
51. Rh8 {[%clk 0:00:05.3]} 51... Ng6 {[%clk 0:00:05.3]} 52. Rh7+ {[%clk
0:00:06.2]} 52... Kd6 {[%clk 0:00:03.2]} 53. Rd7+ {[%clk 0:00:07.1]} 53... Kc5
{[%clk 0:00:03]} 54. e7 {[%clk 0:00:08]} 54... Nxe7 {[%clk 0:00:01.5]} 55. Rxe7
{[%clk 0:00:08.4]} 55... f4 {[%clk 0:00:02]} 56. Rf7 {[%clk 0:00:08.5]} 56...
Rd6 {[%clk 0:00:02.2]} 57. Rxf4 {[%clk 0:00:08.9]} 57... Rd2 {[%clk 0:00:01.7]}
58. Rf1 {[%clk 0:00:09.8]} 58... Rb2 {[%clk 0:00:01.5]} 59. Rc1+ {[%clk
0:00:10.3]} 59... Kd6 {[%clk 0:00:02]} 60. Kxa6 {[%clk 0:00:10.6]} 60... b4
{[%clk 0:00:02.5]} 61. Kb5 {[%clk 0:00:10.7]} 61... Rf2 {[%clk 0:00:02.2]} 62.
Kxb4 {[%clk 0:00:11.6]} 62... Rf4+ {[%clk 0:00:02.5]} 63. Rc4 {[%clk 0:00:12.5]}
63... Rf5 {[%clk 0:00:02.9]} 64. Rc3 {[%clk 0:00:12.7]} 64... Rf4+ {[%clk
0:00:02]} 65. Rc4 {[%clk 0:00:13.6]} 65... Rf5 {[%clk 0:00:02.4]} 66. Kc3 {[%clk
0:00:14.5]} 66... Rf3+ {[%clk 0:00:02.6]} 67. Kb4 {[%clk 0:00:14.6]} 67... Rf5
{[%clk 0:00:03.1]} 1/2-1/2

[Event "*** Titled Tuesday Blitz"]
[Site "Chess.com"]
[Date "2021.03.02"]
[Round "6"]
[White "KNCP_719"]
[Black "mbachez"]
[Result "0-1"]
[WhiteElo "2582"]
[BlackElo "2478"]
[TimeControl "180+1"]
[EndTime "11:08:13 PST"]
[Termination "mbachez won on time"]

1. e4 {[%clk 0:03:00.9]} 1... e6 {[%clk 0:02:59]} 2. c4 {[%clk 0:03:00]} 2... d5
{[%clk 0:02:57.7]} 3. cxd5 {[%clk 0:03:00.9]} 3... exd5 {[%clk 0:02:57.6]} 4.
exd5 {[%clk 0:03:01.8]} 4... Nf6 {[%clk 0:02:57]} 5. Nc3 {[%clk 0:03:02.4]} 5...
Nxd5 {[%clk 0:02:56.6]} 6. Nf3 {[%clk 0:03:03.1]} 6... Be7 {[%clk 0:02:56.4]} 7.
d4 {[%clk 0:03:03.5]} 7... c6 {[%clk 0:02:55.8]} 8. Bd3 {[%clk 0:03:03.8]} 8...
Bg4 {[%clk 0:02:54.1]} 9. O-O {[%clk 0:03:03.8]} 9... O-O {[%clk 0:02:51]} 10.
Re1 {[%clk 0:03:04.2]} 10... Bf6 {[%clk 0:02:49.2]} 11. Ne4 {[%clk 0:02:54.4]}
11... Bxf3 {[%clk 0:02:16.2]} 12. Qxf3 {[%clk 0:02:55.3]} 12... Bxd4 {[%clk
0:02:13.8]} 13. Qh3 {[%clk 0:02:36.2]} 13... g6 {[%clk 0:01:47.5]} 14. Bh6
{[%clk 0:01:41]} 14... Bg7 {[%clk 0:01:38.7]} 15. Bg5 {[%clk 0:01:37]} 15... f6
{[%clk 0:01:35.6]} 16. Bd2 {[%clk 0:01:29.7]} 16... Qd7 {[%clk 0:01:24.2]} 17.
Qg3 {[%clk 0:01:24.2]} 17... Na6 {[%clk 0:01:20.5]} 18. Bxa6 {[%clk 0:01:18.5]}
18... bxa6 {[%clk 0:01:19]} 19. Nc5 {[%clk 0:01:19.1]} 19... Qf7 {[%clk
0:01:14.4]} 20. Nxa6 {[%clk 0:01:08.7]} 20... f5 {[%clk 0:01:13.2]} 21. Rab1
{[%clk 0:01:04.5]} 21... Rae8 {[%clk 0:01:10.7]} 22. b3 {[%clk 0:00:51]} 22...
f4 {[%clk 0:01:02.9]} 23. Qf3 {[%clk 0:00:50.6]} 23... Qf5 {[%clk 0:01:01.8]}
24. Bb4 {[%clk 0:00:41.1]} 24... Rxe1+ {[%clk 0:00:27.9]} 25. Rxe1 {[%clk
0:00:39]} 25... Rd8 {[%clk 0:00:27]} 26. h4 {[%clk 0:00:37.8]} 26... Qc8 {[%clk
0:00:23.5]} 27. Qe2 {[%clk 0:00:25.6]} 27... Kh8 {[%clk 0:00:22.9]} 28. Bc5
{[%clk 0:00:20.7]} 28... f3 {[%clk 0:00:22.2]} 29. gxf3 {[%clk 0:00:16.8]} 29...
Nf4 {[%clk 0:00:20.6]} 30. Qc4 {[%clk 0:00:13.8]} 30... Qf5 {[%clk 0:00:15.1]}
31. Be3 {[%clk 0:00:13.2]} 31... Nd3 {[%clk 0:00:10.9]} 32. Rd1 {[%clk
0:00:10.8]} 32... Rd5 {[%clk 0:00:10.3]} 33. Nb4 {[%clk 0:00:08.6]} 33... Nxb4
{[%clk 0:00:09.4]} 34. Rxd5 {[%clk 0:00:07]} 34... Nxd5 {[%clk 0:00:08.5]} 35.
Qxc6 {[%clk 0:00:07.4]} 35... Nxe3 {[%clk 0:00:08.2]} 36. Qe8+ {[%clk
0:00:07.3]} 36... Qf8 {[%clk 0:00:07.4]} 37. Qxe3 {[%clk 0:00:07.8]} 37... Bf6
{[%clk 0:00:06.6]} 38. Qxa7 {[%clk 0:00:06.2]} 38... Bxh4 {[%clk 0:00:06.3]} 39.
Qd4+ {[%clk 0:00:06.3]} 39... Bf6 {[%clk 0:00:06.3]} 40. Qc4 {[%clk 0:00:05.1]}
40... Qe7 {[%clk 0:00:06.6]} 41. Kg2 {[%clk 0:00:05.3]} 41... Kg7 {[%clk
0:00:06.3]} 42. a4 {[%clk 0:00:05.6]} 42... Be5 {[%clk 0:00:06.6]} 43. Qe4
{[%clk 0:00:02.9]} 43... Qg5+ {[%clk 0:00:06.1]} 44. Kf1 {[%clk 0:00:03.4]}
44... Qf4 {[%clk 0:00:06.3]} 45. Qb7+ {[%clk 0:00:03]} 45... Kh6 {[%clk
0:00:05.8]} 46. a5 {[%clk 0:00:03.6]} 46... Bd4 {[%clk 0:00:05.5]} 47. a6 {[%clk
0:00:03]} 47... Qd2 {[%clk 0:00:05.5]} 48. Kg2 {[%clk 0:00:01.5]} 48... Qxf2+
{[%clk 0:00:05.5]} 49. Kh3 {[%clk 0:00:02.4]} 49... Be5 {[%clk 0:00:04.7]} 50.
f4 {[%clk 0:00:01]} 50... Qxf4 {[%clk 0:00:04]} 0-1

[Event "*** Titled Tuesday Blitz"]
[Site "Chess.com"]
[Date "2021.03.02"]
[Round "6"]
[White "federicosellitti"]
[Black "krzyzan94"]
[Result "0-1"]
[WhiteElo "2534"]
[BlackElo "2720"]
[TimeControl "180+1"]
[EndTime "11:08:16 PST"]
[Termination "krzyzan94 won by resignation"]

1. e4 {[%clk 0:03:00.9]} 1... d6 {[%clk 0:02:56.1]} 2. Nc3 {[%clk 0:03:00.9]}
2... g6 {[%clk 0:02:54.5]} 3. g3 {[%clk 0:03:01.3]} 3... Bg7 {[%clk 0:02:54.9]}
4. Bg2 {[%clk 0:03:02]} 4... c5 {[%clk 0:02:54.4]} 5. d3 {[%clk 0:03:02.6]} 5...
Nc6 {[%clk 0:02:54.9]} 6. Be3 {[%clk 0:03:03]} 6... Rb8 {[%clk 0:02:55.2]} 7.
Qd2 {[%clk 0:03:03.5]} 7... b5 {[%clk 0:02:55.4]} 8. h3 {[%clk 0:03:02.6]} 8...
b4 {[%clk 0:02:54.4]} 9. Nd1 {[%clk 0:03:03.1]} 9... e6 {[%clk 0:02:54.5]} 10.
Ne2 {[%clk 0:03:03.1]} 10... Nd4 {[%clk 0:02:54.3]} 11. Nc1 {[%clk 0:02:57.9]}
11... h5 {[%clk 0:02:50.6]} 12. c3 {[%clk 0:02:56.8]} 12... bxc3 {[%clk
0:02:50.5]} 13. bxc3 {[%clk 0:02:57.7]} 13... Nc6 {[%clk 0:02:48.1]} 14. O-O
{[%clk 0:02:58.3]} 14... e5 {[%clk 0:02:39.6]} 15. f4 {[%clk 0:02:58.2]} 15...
Nge7 {[%clk 0:02:34.4]} 16. Ne2 {[%clk 0:02:48.6]} 16... exf4 {[%clk 0:02:27]}
17. Nxf4 {[%clk 0:02:39]} 17... O-O {[%clk 0:02:24]} 18. Nxh5 {[%clk 0:01:58.9]}
18... gxh5 {[%clk 0:02:20.1]} 19. Bh6 {[%clk 0:01:55.5]} 19... Ng6 {[%clk
0:02:14.2]} 20. Bxg7 {[%clk 0:01:55.1]} 20... Kxg7 {[%clk 0:02:15.1]} 21. Ne3
{[%clk 0:01:55.8]} 21... Nce7 {[%clk 0:01:56.8]} 22. Nf5+ {[%clk 0:01:52.6]}
22... Nxf5 {[%clk 0:01:24.3]} 23. exf5 {[%clk 0:01:53.5]} 23... Bb7 {[%clk
0:00:59]} 24. f6+ {[%clk 0:01:49.4]} 24... Kh7 {[%clk 0:00:52.9]} 25. Rf5 {[%clk
0:01:49.8]} 25... Re8 {[%clk 0:00:09.3]} 26. Rxh5+ {[%clk 0:01:43.8]} 26... Kg8
{[%clk 0:00:09.3]} 27. Qh6 {[%clk 0:01:42.1]} 27... Qxf6 {[%clk 0:00:09.3]} 28.
Rf1 {[%clk 0:01:29.6]} 28... Qg7 {[%clk 0:00:08.7]} 29. Qg5 {[%clk 0:01:26.1]}
29... Bxg2 {[%clk 0:00:08.5]} 30. Kxg2 {[%clk 0:01:27]} 30... Rb2+ {[%clk
0:00:08]} 31. Kg1 {[%clk 0:01:22.2]} 31... Rbe2 {[%clk 0:00:07.7]} 32. Qg4
{[%clk 0:01:14]} 32... Re1 {[%clk 0:00:07.1]} 33. Rf5 {[%clk 0:01:09.3]} 33...
Rxf1+ {[%clk 0:00:07.1]} 34. Rxf1 {[%clk 0:01:10.2]} 34... Qxc3 {[%clk
0:00:07.4]} 35. h4 {[%clk 0:01:07.5]} 35... Qd4+ {[%clk 0:00:07.6]} 36. Qxd4
{[%clk 0:01:05.8]} 36... cxd4 {[%clk 0:00:08.5]} 37. h5 {[%clk 0:01:05.9]} 37...
Ne5 {[%clk 0:00:08.1]} 38. Rf4 {[%clk 0:01:06.2]} 38... Rc8 {[%clk 0:00:06.9]}
39. Kg2 {[%clk 0:01:03.1]} 39... Rc2+ {[%clk 0:00:06.5]} 40. Kh3 {[%clk
0:01:03.2]} 40... Nc6 {[%clk 0:00:05.3]} 41. Rf6 {[%clk 0:01:01]} 41... Rd2
{[%clk 0:00:03.1]} 42. Rxd6 {[%clk 0:01:01.1]} 42... Ne5 {[%clk 0:00:03.7]} 43.
Rxd4 {[%clk 0:00:54.3]} 43... Rxa2 {[%clk 0:00:03.4]} 44. Rd5 {[%clk 0:00:53.3]}
44... Nc6 {[%clk 0:00:02]} 45. g4 {[%clk 0:00:52.1]} 45... a5 {[%clk 0:00:02]}
46. g5 {[%clk 0:00:51.5]} 46... Ne7 {[%clk 0:00:02.2]} 47. Rd7 {[%clk
0:00:46.5]} 47... Nf5 {[%clk 0:00:02.3]} 48. Kg4 {[%clk 0:00:45.9]} 48... Ne3+
{[%clk 0:00:02.4]} 49. Kf4 {[%clk 0:00:44.6]} 49... Ng2+ {[%clk 0:00:02]} 50.
Kg3 {[%clk 0:00:42.6]} 50... a4 {[%clk 0:00:02.7]} 51. Ra7 {[%clk 0:00:40.4]}
51... a3 {[%clk 0:00:02.6]} 52. d4 {[%clk 0:00:40.2]} 52... Ne3 {[%clk
0:00:02.1]} 53. Kf3 {[%clk 0:00:40.5]} 53... Nd5 {[%clk 0:00:02.3]} 54. Ke4
{[%clk 0:00:39.9]} 54... Nb4 {[%clk 0:00:02.5]} 55. Rb7 {[%clk 0:00:34.4]} 55...
Re2+ {[%clk 0:00:02.1]} 56. Kf3 {[%clk 0:00:34.3]} 56... Rb2 {[%clk 0:00:02.1]}
57. g6 {[%clk 0:00:27.2]} 57... fxg6 {[%clk 0:00:03]} 58. h6 {[%clk 0:00:27.8]}
58... a2 {[%clk 0:00:03]} 59. Ra7 {[%clk 0:00:28]} 59... Rb3+ {[%clk 0:00:02.5]}
60. Kg4 {[%clk 0:00:26.8]} 60... Rb1 {[%clk 0:00:03.4]} 61. Ra8+ {[%clk
0:00:26]} 61... Kh7 {[%clk 0:00:03]} 0-1